bitfinex-derivatives/quotes_BTCF0:USTF0_20250602
["timestamp","ask_amount","ask_price","bid_price","bid_amount"]
[1748835299096,0.7689477,104930.0,104920.0,1.0379673]
[1748835299590,0.7689477,104930.0,104920.0,0.5906073]
[1748835299886,0.857498,104930.0,104920.0,0.4406073]
[1748835300077,0.97378603,104930.0,104920.0,0.39594755]
[1748835300277,0.97378603,104930.0,104920.0,0.08911362]
[1748835300493,1.33259573,104930.0,104920.0,0.08911362]
[1748835300692,1.44998718,104930.0,104920.0,0.08911362]
[1748835300891,1.49799016,104930.0,104920.0,0.08911362]
[1748835301583,1.49799016,104930.0,104920.0,0.04693468]
[1748835304293,1.49799016,104930.0,104920.0,0.23748038]
[1748835304493,1.49799016,104930.0,104920.0,0.04693468]
[1748835305290,1.85879016,104930.0,104920.0,0.04693468]
[1748835305485,1.85879016,104930.0,104920.0,0.23748038]
[1748835305884,1.85879016,104930.0,104920.0,0.04693468]
[1748835307192,1.74139871,104930.0,104920.0,0.04693468]
[1748835307694,1.74139871,104930.0,104920.0,0.16322271]
[1748835309291,1.85879016,104930.0,104920.0,0.16322271]
[1748835310496,1.85879016,104930.0,104920.0,0.35376841]
[1748835311298,1.74139871,104930.0,104920.0,0.35376841]
[1748835311494,1.83004872,104930.0,104920.0,0.16322271]
[1748835312598,1.10844872,104930.0,104920.0,0.16322271]
[1748835312799,1.83004872,104930.0,104920.0,0.16322271]
[1748835313092,1.85879016,104930.0,104920.0,0.16322271]
[1748835314093,1.85879016,104930.0,104920.0,0.35376851]
[1748835314302,1.94743742,104930.0,104920.0,0.35376851]
[1748835314598,1.94743742,104930.0,104920.0,0.16322271]
[1748835314801,1.85879016,104930.0,104920.0,0.16322271]
[1748835317703,1.85879016,104930.0,104920.0,0.35376841]
[1748835318103,1.85879016,104930.0,104920.0,0.16322271]
[1748835318403,1.85879016,104930.0,104920.0,0.35376841]
[1748835318703,1.85879016,104930.0,104920.0,0.16322271]
[1748835323203,1.29498213,104930.0,104920.0,0.35376841]
[1748835323402,1.29498213,104930.0,104920.0,0.16322271]
[1748835324101,1.41127016,104930.0,104920.0,0.16322271]
[1748835324705,1.41127016,104930.0,104920.0,0.20032271]
[1748835328208,1.41127016,104930.0,104920.0,0.04693468]
[1748835328404,1.29387871,104930.0,104920.0,0.04693468]
[1748835328604,1.44117769,104930.0,104920.0,0.04693468]
[1748835328905,1.50547474,104930.0,104920.0,0.04693468]
[1748835329403,1.71169349,104930.0,104920.0,0.04693468]
[1748835329603,1.85968092,104930.0,104920.0,0.04693468]
[1748835329816,1.65346217,104930.0,104920.0,0.04693468]
[1748835331307,1.53717414,104930.0,104920.0,0.04693468]
[1748835331701,1.42088611,104930.0,104920.0,0.04693468]
[1748835331906,1.53717414,104930.0,104920.0,0.04693468]
[1748835332903,1.98437414,104930.0,104920.0,0.04693468]
[1748835336109,1.53717414,104930.0,104920.0,0.04693468]
[1748835336413,1.98433414,104930.0,104920.0,0.04693468]
[1748835338401,1.31372611,104930.0,104920.0,0.16322271]
[1748835338607,1.33470614,104930.0,104920.0,0.16322271]
[1748835338814,1.25167811,104930.0,104920.0,0.54095644]
[1748835339108,1.81727372,104930.0,104920.0,0.38521074]
[1748835339318,1.97056175,104930.0,104920.0,0.26892271]
[1748835340410,1.82257432,104930.0,104920.0,0.26892271]
[1748835340809,1.70417871,104930.0,104920.0,0.26892271]
[1748835341211,1.58789068,104930.0,104920.0,0.15263468]
[1748835341608,1.14073068,104930.0,104920.0,0.15263468]
[1748835341809,1.58789068,104930.0,104920.0,0.15263468]
[1748835342013,1.58789068,104930.0,104920.0,0.26892935]
[1748835343217,1.58789068,104930.0,104920.0,0.31107043]
[1748835343418,1.67670928,104930.0,104920.0,0.31107043]
[1748835345522,1.67670928,104930.0,104920.0,0.26892935]
[1748835345919,1.58789068,104930.0,104920.0,0.26892935]
[1748835346720,1.58789068,104930.0,104920.0,0.15263468]
[1748835349517,1.70628629,104930.0,104920.0,0.15263468]
[1748835350518,1.82258096,104930.0,104920.0,0.15263468]
[1748835350716,1.85748096,104930.0,104920.0,0.15263468]
[1748835351424,1.74118629,104930.0,104920.0,0.15263468]
[1748835352016,1.85748096,104930.0,104920.0,0.15263468]
[1748835353624,1.74118629,104930.0,104920.0,0.15263468]
[1748835353825,1.85748096,104930.0,104920.0,0.15263468]
[1748835357226,1.41032096,104930.0,104920.0,0.15263468]
[1748835357426,1.85736096,104930.0,104920.0,0.15263468]
[1748835358330,1.85736096,104930.0,104920.0,0.11783468]
[1748835358927,1.74106629,104930.0,104920.0,0.11783468]
[1748835359127,1.85736096,104930.0,104920.0,0.11783468]
[1748835359328,2.00534839,104930.0,104920.0,0.11783468]
[1748835359529,2.00534839,104930.0,104920.0,0.12783468]
[1748835359926,2.00534839,104930.0,104920.0,0.09273468]
[1748835360126,2.00534839,104930.0,104920.0,0.08273468]
[1748835360335,1.85736096,104930.0,104920.0,0.04693468]
[1748835361427,1.13576096,104930.0,104920.0,0.04693468]
[1748835361628,1.85736096,104930.0,104920.0,0.04693468]
[1748835362928,1.74106629,104930.0,104920.0,0.04693468]
[1748835363133,1.85736096,104930.0,104920.0,0.04693468]
[1748835366639,1.74106629,104930.0,104920.0,0.04693468]
[1748835366937,1.85736096,104930.0,104920.0,0.04693468]
[1748835369640,1.88695278,104930.0,104920.0,0.04693468]
[1748835371333,1.77065811,104930.0,104920.0,0.04693468]
[1748835371635,1.88695278,104930.0,104920.0,0.04693468]
[1748835373129,1.88696384,104930.0,104920.0,0.19894041]
[1748835374042,1.32361811,104930.0,104920.0,0.19894041]
[1748835374243,1.28871811,104930.0,104920.0,0.54229184]
[1748835374446,0.9485277,104930.0,104920.0,0.57779184]
[1748835374630,1.1397135,104930.0,104920.0,0.57779184]
[1748835375732,1.1397135,104930.0,104920.0,0.58779184]
[1748835376538,1.0212077,104930.0,104920.0,0.58779184]
[1748835376739,1.0212077,104930.0,104920.0,0.35518038]
[1748835376943,1.0212077,104930.0,104920.0,0.58779184]
[1748835377143,1.0212077,104930.0,104920.0,0.47144052]
[1748835377331,0.97335636,104930.0,104920.0,0.84144052]
[1748835377532,1.06221467,104930.0,104920.0,0.84144052]
[1748835378539,0.97335636,104930.0,104920.0,0.84144052]
[1748835379950,0.97335636,104930.0,104920.0,1.38366852]
[1748835381147,0.9141277,104930.0,104920.0,1.38366852]
[1748835381349,0.9141277,104930.0,104920.0,0.93674852]
[1748835381546,0.9141277,104930.0,104920.0,1.38366852]
[1748835382545,0.9141277,104930.0,104920.0,1.28836052]
[1748835383743,0.5533277,104930.0,104920.0,1.28836052]
[1748835386451,0.5533277,104930.0,104920.0,1.28832052]
[1748835393246,0.3628,104930.0,104920.0,1.28832052]
[1748835393447,0.1925276,104930.0,104920.0,1.33284809]
[1748835400752,0.2297276,104930.0,104920.0,1.33284809]
[1748835402355,0.2297276,104930.0,104920.0,1.3923189]
[1748835403167,0.2297276,104930.0,104920.0,1.50858444]
[1748835403467,0.2297276,104930.0,104920.0,1.50865931]
[1748835404954,0.64975626,104930.0,104920.0,1.50853931]
[1748835405159,0.2297276,104930.0,104920.0,1.50853931]
[1748835405367,0.5905276,104930.0,104920.0,1.06177931]
[1748835405567,0.2297276,104930.0,104920.0,1.50853931]
[1748835405770,0.2297276,104930.0,104920.0,1.46393687]
[1748835405967,0.1925276,104930.0,104920.0,1.46393687]
[1748835406154,0.002,104930.0,104920.0,1.67550771]
[1748835406358,0.002,104930.0,104920.0,3.17550771]
[1748835406563,0.002,104930.0,104920.0,3.26472332]
[1748835407977,0.002,104930.0,104920.0,3.31324675]
[1748835408772,0.0377,104930.0,104920.0,3.10167591]
[1748835409263,0.0377,104930.0,104920.0,2.98540583]
[1748835409863,0.0377,104930.0,104920.0,2.9368824]
[1748835412970,0.002,104930.0,104920.0,2.9368824]
[1748835413470,0.002,104930.0,104920.0,3.2976824]
[1748835413870,0.002,104930.0,104920.0,3.23821159]
[1748835415376,0.002,104930.0,104920.0,3.34509159]
[1748835415769,0.002,104930.0,104920.0,2.99363959]
[1748835416075,0.00214297,104940.0,104930.0,0.4230389]
[1748835416377,0.00214297,104940.0,104930.0,1.31285451]
[1748835416580,0.00214297,104940.0,104930.0,1.40815051]
[1748835416769,0.00214297,104940.0,104930.0,2.90815051]
[1748835417176,0.00214297,104940.0,104930.0,2.96761472]
[1748835417379,0.00214297,104940.0,104930.0,2.79455114]
[1748835417582,0.00214297,104940.0,104930.0,2.96761472]
[1748835417972,0.00214297,104940.0,104930.0,2.90815051]
[1748835418375,0.00414297,104940.0,104930.0,2.90815051]
[1748835418675,0.00414297,104940.0,104930.0,2.91442588]
[1748835418869,0.00414297,104940.0,104930.0,2.91918588]
[1748835419068,0.00614297,104940.0,104930.0,2.91918588]
[1748835419879,0.00614297,104940.0,104930.0,2.73519811]
[1748835420086,0.00614297,104940.0,104930.0,2.96770931]
[1748835422384,0.00614297,104940.0,104930.0,2.91918588]
[1748835424283,0.00614297,104940.0,104930.0,2.96770931]
[1748835429198,0.0378,104950.0,104940.0,0.1905095]
[1748835429406,0.0378,104950.0,104940.0,1.58959304]
[1748835429594,0.0378,104950.0,104940.0,1.2409544]
[1748835429900,0.0378,104950.0,104940.0,3.08959304]
[1748835430100,0.0378,104950.0,104940.0,3.03022021]
[1748835430505,0.0378,104950.0,104940.0,3.07974364]
[1748835430802,0.0378,104950.0,104940.0,2.62385076]
[1748835431104,0.0378,104950.0,104940.0,3.07237076]
[1748835431293,0.0752,104950.0,104940.0,3.13173387]
[1748835431493,0.0752,104950.0,104940.0,3.07337076]
[1748835431791,0.0752,104950.0,104940.0,3.08420782]
[1748835432293,0.1117,104950.0,104940.0,3.08620782]
[1748835433297,0.1117,104950.0,104940.0,2.9700126]
[1748835434393,0.1117,104950.0,104940.0,3.01853603]
[1748835434598,0.0752,104950.0,104940.0,3.13476657]
[1748835436704,0.0752,104950.0,104940.0,3.01853603]
[1748835438710,0.0752,104950.0,104940.0,2.95917554]
[1748835439406,0.0752,104950.0,104940.0,3.07540608]
[1748835439599,0.0752,104950.0,104940.0,2.95917554]
[1748835440007,0.0752,104950.0,104940.0,3.07540608]
[1748835443805,0.0752,104950.0,104940.0,2.95917554]
[1748835444213,0.1096,104950.0,104940.0,2.95917554]
[1748835444402,0.1096,104950.0,104940.0,3.07789956]
[1748835445408,0.1096,104950.0,104940.0,3.02937613]
[1748835445602,0.1096,104950.0,104940.0,2.94016052]
[1748835446103,0.1096,104950.0,104940.0,2.98870617]
[1748835446810,0.0752,104950.0,104940.0,2.98870617]
[1748835447612,0.112,104950.0,104940.0,2.98870617]
[1748835448108,0.112,104950.0,104940.0,2.87247563]
[1748835448307,0.112,104950.0,104940.0,2.98870617]
[1748835448706,0.112,104950.0,104940.0,2.99346617]
[1748835449314,0.112,104950.0,104940.0,3.10969671]
[1748835449814,0.112,104950.0,104940.0,3.10953671]
[1748835450313,0.112,104950.0,104940.0,2.99330617]
[1748835451313,0.112,104950.0,104940.0,2.94476052]
[1748835453107,0.112,104950.0,104940.0,2.99332356]
[1748835453313,0.112,104950.0,104940.0,3.10954492]
[1748835454717,0.0752,104950.0,104940.0,3.10954492]
[1748835455612,0.0752,104950.0,104940.0,3.10950492]
[1748835456314,0.0378,104950.0,104940.0,3.22573087]
[1748835456521,0.0378,104950.0,104940.0,3.17716783]
[1748835456707,0.0378,104950.0,104940.0,3.10701985]
[1748835457822,0.0378,104950.0,104940.0,3.0731508]
[1748835458412,0.0378,104950.0,104940.0,3.0731509]
[1748835458715,0.0378,104950.0,104940.0,3.05844381]
[1748835459021,0.0378,104950.0,104940.0,3.07315474]
[1748835459425,0.0378,104950.0,104940.0,3.07315465]
[1748835459818,0.0378,104950.0,104940.0,3.1624783]
[1748835460120,0.0378,104950.0,104940.0,2.81380045]
[1748835460323,0.0378,104950.0,104940.0,3.1624783]
[1748835460513,0.0378,104950.0,104940.0,3.1624785]
[1748835460709,0.0378,104950.0,104940.0,3.16247868]
[1748835461512,0.0378,104950.0,104940.0,3.14776746]
[1748835461715,0.0378,104950.0,104940.0,3.16247868]
[1748835462209,0.0378,104950.0,104940.0,3.04625273]
[1748835462413,0.0378,104950.0,104940.0,3.04625339]
[1748835462621,0.0378,104950.0,104940.0,2.99634151]
[1748835462817,0.1093,104950.0,104940.0,2.99634151]
[1748835463023,0.1093,104950.0,104940.0,3.01105336]
[1748835463223,0.1093,104950.0,104940.0,3.04675336]
[1748835464216,0.1093,104950.0,104940.0,3.04675356]
[1748835465622,0.073,104950.0,104940.0,3.04675356]
[1748835466220,0.073,104950.0,104940.0,3.03204151]
[1748835466422,0.073,104950.0,104940.0,3.04675346]
[1748835466820,0.073,104950.0,104940.0,2.81430156]
[1748835467018,0.4338,104950.0,104940.0,2.42299346]
[1748835467324,0.4689,104950.0,104940.0,2.85464151]
[1748835469125,0.4689,104950.0,104940.0,2.96275425]
[1748835469327,0.4689,104950.0,104940.0,1.49845425]
[1748835469528,0.4689,104950.0,104940.0,1.05209425]
[1748835469726,0.4689,104950.0,104940.0,1.44987821]
[1748835470030,0.4689,104950.0,104940.0,1.50906553]
[1748835470919,0.4689,104950.0,104940.0,1.55764096]
[1748835471123,0.4689,104950.0,104940.0,1.43891694]
[1748835473827,0.4689,104950.0,104940.0,0.99255694]
[1748835474032,0.4689,104950.0,104940.0,1.43891694]
[1748835474236,0.4689,104950.0,104940.0,0.99255694]
[1748835474430,0.6593914,104950.0,104940.0,0.80303099]
[1748835474632,0.6593914,104950.0,104940.0,1.26033596]
[1748835474829,0.77561735,104950.0,104940.0,0.81397596]
[1748835475026,0.71866328,104950.0,104940.0,0.76929453]
[1748835475631,0.71866328,104950.0,104940.0,0.70977413]
[1748835476431,0.71866328,104950.0,104940.0,0.66313191]
[1748835476734,0.71866328,104950.0,104940.0,0.70675819]
[1748835478038,0.52817188,104950.0,104940.0,0.70675819]
[1748835479130,0.71866338,104950.0,104940.0,0.70675819]
[1748835479329,0.52817188,104950.0,104940.0,0.70675819]
[1748835480237,0.71866338,104950.0,104940.0,0.70675819]
[1748835480437,0.52817188,104950.0,104940.0,0.70675819]
[1748835480643,0.71866328,104950.0,104940.0,0.70672497]
[1748835481338,0.4689,104950.0,104940.0,0.70672497]
[1748835482440,0.6593914,104950.0,104940.0,0.70672497]
[1748835483439,0.4689,104950.0,104940.0,0.70672497]
[1748835483643,0.6593914,104950.0,104940.0,0.70672497]
[1748835483838,0.4689,104950.0,104940.0,0.70672497]
[1748835485944,0.6593914,104950.0,104940.0,0.70672497]
[1748835486940,1.0201914,104950.0,104940.0,0.70672497]
[1748835487132,0.8297,104950.0,104940.0,0.70672497]
[1748835487640,0.8297,104950.0,104940.0,0.74362497]
[1748835487835,0.8297,104950.0,104940.0,0.85985092]
[1748835488036,0.8297,104950.0,104940.0,0.78032497]
[1748835488431,1.0201914,104950.0,104940.0,0.66409902]
[1748835488636,1.0201914,104950.0,104940.0,0.78032497]
[1748835489036,1.0201914,104950.0,104940.0,0.66409902]
[1748835489237,1.0201914,104950.0,104940.0,0.78032497]
[1748835490145,1.0201914,104950.0,104940.0,0.66409902]
[1748835490341,1.0201914,104950.0,104940.0,0.78032497]
[1748835491537,0.8297,104950.0,104940.0,0.78032497]
[1748835492048,0.8297,104950.0,104940.0,0.81662497]
[1748835492441,0.8297,104950.0,104940.0,0.81661529]
[1748835493943,0.8297,104950.0,104940.0,0.93284124]
[1748835494142,0.7946,104950.0,104940.0,0.93284124]
[1748835495151,0.8306,104950.0,104940.0,0.93284124]
[1748835496456,0.88987188,104950.0,104940.0,0.93284124]
[1748835496852,0.88987188,104950.0,104940.0,0.93286598]
[1748835497855,0.88987188,104950.0,104940.0,0.70041408]
[1748835498155,0.88987188,104950.0,104940.0,0.93286598]
[1748835499865,0.85387188,104950.0,104940.0,0.93286598]
[1748835501368,0.85387188,104950.0,104940.0,0.93288218]
[1748835503465,0.94273019,104950.0,104940.0,0.93288218]
[1748835503866,0.94273019,104950.0,104940.0,0.93290847]
[1748835504771,0.94273019,104950.0,104940.0,0.99242887]
[1748835505670,0.94273019,104950.0,104940.0,0.94777826]
[1748835505865,0.94273019,104950.0,104940.0,0.93292715]
[1748835507573,0.94273019,104950.0,104940.0,0.99244755]
[1748835509964,0.85387188,104950.0,104940.0,0.99244755]
[1748835510164,0.85387188,104950.0,104940.0,0.99244783]
[1748835510859,0.85387188,104950.0,104940.0,0.75999593]
[1748835511063,0.85387188,104950.0,104940.0,0.99244783]
[1748835514478,0.85387188,104950.0,104940.0,0.71532636]
[1748835514479,0.78087188,104950.0,104940.0,0.71532636]
[1748835514772,0.78087188,104950.0,104940.0,0.94777826]
[1748835515664,0.78087188,104950.0,104940.0,1.03710191]
[1748835517576,0.78087188,104950.0,104940.0,0.80465001]
[1748835517778,0.78087188,104950.0,104940.0,1.03710191]
[1748835518076,0.81817188,104950.0,104940.0,1.03710191]
[1748835518479,0.7589,104950.0,104940.0,1.03710191]
[1748835521467,0.7938,104950.0,104940.0,1.03710191]
[1748835522974,0.7938,104950.0,104940.0,0.94777826]
[1748835522975,0.7589,104950.0,104940.0,0.94777826]
[1748835523179,0.7589,104950.0,104940.0,1.06400421]
[1748835523776,0.7589,104950.0,104940.0,1.09380746]
[1748835523976,0.7589,104950.0,104940.0,1.14238289]
[1748835524378,0.7589,104950.0,104940.0,2.64238289]
[1748835524578,0.7589,104950.0,104940.0,2.59380746]
[1748835526883,0.7589,104950.0,104940.0,2.47758151]
[1748835527085,0.7589,104950.0,104940.0,2.52904596]
[1748835527286,1.08176328,104950.0,104940.0,2.70478399]
[1748835527488,1.08176328,104950.0,104940.0,1.20478399]
[1748835528079,0.89127188,104950.0,104940.0,1.23868399]
[1748835528285,1.08176328,104950.0,104940.0,1.23868399]
[1748835528487,1.08176328,104950.0,104940.0,0.58778158]
[1748835528680,1.08176328,104950.0,104940.0,1.15024753]
[1748835529387,1.08176328,104950.0,104940.0,1.03402158]
[1748835529686,1.08176328,104950.0,104940.0,1.15024753]
[1748835529883,0.36016328,104950.0,104940.0,1.15024753]
[1748835530089,0.72096328,104950.0,104940.0,1.15024753]
[1748835531080,0.72096328,104950.0,104940.0,1.18624753]
[1748835531585,0.72096328,104950.0,104940.0,1.22194753]
[1748835531786,0.72096328,104950.0,104940.0,1.33817348]
[1748835532377,0.6616914,104950.0,104940.0,1.33817662]
[1748835532585,0.72102415,104950.0,104940.0,1.33817662]
[1748835532783,0.53053275,104950.0,104940.0,1.33817662]
[1748835532984,0.72102415,104950.0,104940.0,1.33817662]
[1748835533785,0.53053275,104950.0,104940.0,1.33817662]
[1748835534287,0.53053275,104950.0,104940.0,1.37357662]
[1748835535585,0.49393275,104950.0,104940.0,1.37357662]
[1748835536891,0.4346,104950.0,104940.0,1.37357662]
[1748835542486,0.4346,104950.0,104940.0,1.51146526]
[1748835543988,0.4346,104950.0,104940.0,1.46290027]
[1748835544888,0.4346,104950.0,104940.0,1.37357662]
[1748835545092,0.4346,104950.0,104940.0,0.69488472]
[1748835545395,0.471,104950.0,104940.0,1.25731067]
[1748835546803,0.471,104950.0,104940.0,1.37353662]
[1748835548601,0.471,104950.0,104940.0,1.14108472]
[1748835548803,0.471,104950.0,104940.0,1.25731067]
[1748835549804,0.471,104950.0,104940.0,1.37353662]
[1748835550103,0.3981,104950.0,104940.0,1.37353662]
[1748835550302,0.45743275,104950.0,104940.0,1.41817616]
[1748835550498,0.45743275,104950.0,104940.0,1.4628157]
[1748835550895,0.45743275,104950.0,104940.0,1.41817616]
[1748835552597,0.45743275,104950.0,104940.0,1.41817615]
[1748835554702,0.64792415,104950.0,104940.0,0.73952425]
[1748835554905,0.68312415,104950.0,104940.0,1.2665102]
[1748835555204,0.72002415,104950.0,104940.0,1.2665102]
[1748835555904,0.52953275,104950.0,104940.0,1.2665102]
[1748835556408,0.52953275,104950.0,104940.0,1.38273615]
[1748835557398,0.52953275,104950.0,104940.0,1.2665102]
[1748835558004,0.52953275,104950.0,104940.0,1.3012102]
[1748835558199,0.52953275,104950.0,104940.0,1.18498425]
[1748835558405,0.52953275,104950.0,104940.0,1.3012102]
[1748835558602,0.52953275,104950.0,104940.0,1.18498425]
[1748835558802,0.52953275,104950.0,104940.0,1.3012102]
[1748835559006,0.52953275,104950.0,104940.0,1.41743615]
[1748835560403,0.52953275,104950.0,104940.0,1.37279662]
[1748835560603,0.52953275,104950.0,104940.0,1.46212027]
[1748835561007,0.52953275,104950.0,104940.0,1.37279662]
[1748835561303,0.72002415,104950.0,104940.0,1.37279662]
[1748835564110,0.52953275,104950.0,104940.0,1.37279662]
[1748835564510,0.52953275,104950.0,104940.0,0.92663662]
[1748835564705,0.52953275,104950.0,104940.0,1.37275662]
[1748835564905,0.52953275,104950.0,104940.0,1.25653067]
[1748835565308,0.52953275,104950.0,104940.0,1.37275662]
[1748835565809,0.52953275,104950.0,104940.0,1.46208027]
[1748835566010,0.49263275,104950.0,104940.0,1.46208027]
[1748835570507,0.45743275,104950.0,104940.0,1.46208027]
[1748835570911,0.45743275,104950.0,104940.0,1.37275662]
[1748835571207,0.05933275,104950.0,104940.0,1.57830622]
[1748835571420,0.05933275,104950.0,104940.0,1.54819137]
[1748835571710,0.3965,104960.0,104950.0,0.1904914]
[1748835571910,0.3965,104960.0,104950.0,0.97959154]
[1748835572406,0.3965,104960.0,104950.0,1.02178361]
[1748835573811,0.3965,104960.0,104950.0,1.02278361]
[1748835574015,0.3965,104960.0,104950.0,1.02754361]
[1748835574513,0.3965,104960.0,104950.0,0.95349088]
[1748835574704,0.3965,104960.0,104950.0,1.06971683]
[1748835574899,0.4335,104960.0,104950.0,1.07171683]
[1748835576114,0.4335,104960.0,104950.0,1.02952476]
[1748835576508,0.4335,104960.0,104950.0,1.07412863]
[1748835577219,0.4335,104960.0,104950.0,1.07411045]
[1748835577415,0.3608,104960.0,104950.0,1.07411045]
[1748835578010,0.3608,104960.0,104950.0,1.02950658]
[1748835578614,0.3608,104960.0,104950.0,0.98093682]
[1748835578812,0.3608,104960.0,104950.0,0.9387636]
[1748835579018,0.3608,104960.0,104950.0,0.98091164]
[1748835579414,0.3608,104960.0,104950.0,0.89162898]
[1748835580819,0.3981,104960.0,104950.0,0.89162898]
[1748835581523,0.3608,104960.0,104950.0,0.89162898]
[1748835583423,0.3608,104960.0,104950.0,0.93376637]
[1748835583810,0.3608,104960.0,104950.0,0.89161833]
[1748835585124,0.3982,104960.0,104950.0,1.33793833]
[1748835585321,0.4322,104960.0,104950.0,1.33793833]
[1748835586723,0.4322,104960.0,104950.0,1.33797833]
[1748835587318,0.4322,104960.0,104950.0,1.22177056]
[1748835587520,0.4322,104960.0,104950.0,1.33797833]
[1748835587720,0.4322,104960.0,104950.0,1.29584094]
[1748835588022,0.4322,104960.0,104950.0,1.33797544]
[1748835589318,0.4322,104960.0,104950.0,1.38255692]
[1748835589522,0.4322,104960.0,104950.0,1.38247334]
[1748835591429,0.4674,104960.0,104950.0,1.38219334]
[1748835592124,0.4674,104960.0,104950.0,1.29547736]
[1748835592323,0.4674,104960.0,104950.0,1.38220534]
[1748835592628,0.4674,104960.0,104950.0,1.3376182]
[1748835595422,0.4674,104960.0,104950.0,1.42690086]
[1748835596623,0.4674,104960.0,104950.0,1.42692053]
[1748835596930,0.4674,104960.0,104950.0,1.39082053]
[1748835597134,0.4674,104960.0,104950.0,1.27461276]
[1748835597334,0.4674,104960.0,104950.0,1.39082053]
[1748835598234,0.4674,104960.0,104950.0,1.30153787]
[1748835598534,0.4674,104960.0,104950.0,1.39082053]
[1748835599223,0.4674,104960.0,104950.0,1.27461276]
[1748835599729,0.4674,104960.0,104950.0,1.30153787]
[1748835600834,0.4674,104960.0,104950.0,1.33868591]
[1748835601227,0.4674,104960.0,104950.0,1.33868566]
[1748835603734,0.4674,104960.0,104950.0,1.33869087]
[1748835604935,0.4674,104960.0,104950.0,1.22248335]
[1748835605338,0.4674,104960.0,104950.0,1.33869087]
[1748835608039,0.4674,104960.0,104950.0,1.42797597]
[1748835609144,0.4674,104960.0,104950.0,2.92797597]
[1748835610029,0.4322,104960.0,104950.0,2.92797597]
[1748835613037,0.4322,104960.0,104950.0,2.81176845]
[1748835613237,0.4322,104960.0,104950.0,2.92797597]
[1748835614842,0.4322,104960.0,104950.0,2.89083597]
[1748835615033,0.4669,104960.0,104950.0,2.89083597]
[1748835615738,0.4669,104960.0,104950.0,2.92673597]
[1748835620644,0.4669,104960.0,104950.0,2.88451977]
[1748835620848,0.4669,104960.0,104950.0,2.92673376]
[1748835621742,0.4669,104960.0,104950.0,2.48069376]
[1748835621944,0.4669,104960.0,104950.0,2.92669376]
[1748835622450,0.1061,104960.0,104950.0,2.92669376]
[1748835622644,0.4669,104960.0,104950.0,2.48069376]
[1748835622949,0.4669,104960.0,104950.0,2.92669376]
[1748835624150,0.4669,104960.0,104950.0,2.92669334]
[1748835625843,0.4669,104960.0,104950.0,2.92669335]
[1748835628447,0.4669,104960.0,104950.0,2.92669421]
[1748835630151,0.4669,104960.0,104950.0,2.9267178]
[1748835630550,0.4669,104960.0,104950.0,2.4807178]
[1748835630755,0.4669,104960.0,104950.0,2.9267178]
[1748835631863,0.4669,104960.0,104950.0,2.36451028]
[1748835632158,0.4669,104960.0,104950.0,2.9267178]
[1748835633258,0.4669,104960.0,104950.0,2.81051028]
[1748835633459,0.4669,104960.0,104950.0,2.9267178]
[1748835634265,0.09085831,104970.0,104960.0,0.1904743]
[1748835634558,0.002,104970.0,104960.0,1.16867762]
[1748835634853,0.06133448,104970.0,104960.0,1.12643959]
[1748835635058,0.06133448,104970.0,104960.0,1.03715693]
[1748835635759,0.06133448,104970.0,104960.0,1.08179794]
[1748835636153,0.06133448,104970.0,104960.0,0.96559042]
[1748835636755,0.06133448,104970.0,104960.0,0.92094941]
[1748835636956,0.002,104970.0,104960.0,0.96811886]
[1748835637356,0.002,104970.0,104960.0,2.46811886]
[1748835638952,0.002,104970.0,104960.0,2.58435538]
[1748835639558,0.002,104970.0,104960.0,2.62898132]
[1748835639955,0.09085831,104970.0,104960.0,2.56943093]
[1748835640156,0.002,104970.0,104960.0,2.45322341]
[1748835640857,0.002,104970.0,104960.0,2.22080837]
[1748835641162,0.002,104970.0,104960.0,2.45322341]
[1748835641355,0.002,104970.0,104960.0,2.22080837]
[1748835641555,0.002,104970.0,104960.0,2.45322341]
[1748835641959,0.002,104970.0,104960.0,2.93023093]
[1748835642159,0.002,104970.0,104960.0,2.81402341]
[1748835643155,0.002,104970.0,104960.0,2.72695902]
[1748835643357,0.002,104970.0,104960.0,2.81400068]
[1748835644565,0.002,104970.0,104960.0,2.58158564]
[1748835644964,0.002,104970.0,104960.0,2.81400068]
[1748835646960,0.002,104970.0,104960.0,2.9302082]
[1748835647662,0.002,104970.0,104960.0,2.93019537]
[1748835647864,0.002,104970.0,104960.0,2.81398785]
[1748835649071,0.002,104970.0,104960.0,2.93019537]
[1748835650061,0.002,104970.0,104960.0,2.94513785]
[1748835651275,0.002,104970.0,104960.0,2.82893033]
[1748835651965,0.002,104970.0,104960.0,2.82892563]
[1748835655075,0.002,104970.0,104960.0,2.94513315]
[1748835658782,0.002,104970.0,104960.0,3.03441581]
[1748835660690,0.002,104970.0,104960.0,3.03443039]
[1748835661896,0.002,104970.0,104960.0,2.68580783]
[1748835662193,0.002,104970.0,104960.0,3.48027039]
[1748835663684,0.002,104970.0,104960.0,3.48029462]
[1748835664294,0.002,104970.0,104960.0,3.52886438]
[1748835664477,0.002,104970.0,104960.0,3.46931399]
[1748835666088,0.002,104970.0,104960.0,3.12069143]
[1748835666288,0.002,104970.0,104960.0,3.46931399]
[1748835667895,0.002,104970.0,104960.0,3.42685896]
[1748835668094,0.002,104970.0,104960.0,3.46902485]
[1748835670392,0.002,104970.0,104960.0,3.58774887]
[1748835670597,0.002,104970.0,104960.0,3.46902485]
[1748835670995,0.002,104970.0,104960.0,3.42045509]
[1748835671195,0.12955731,104980.0,104970.0,0.1904562]
[1748835671390,0.01935731,104980.0,104970.0,1.41318955]
[1748835671790,0.01935731,104980.0,104970.0,2.91318955]
[1748835672201,0.21306,104990.0,104980.0,0.1904381]
[1748835672400,0.21306,104990.0,104980.0,1.45088972]
[1748835673199,0.21306,104990.0,104980.0,1.39139863]
[1748835674001,0.21306,104990.0,104980.0,1.39615863]
[1748835674296,0.1065,104990.0,104980.0,1.39615863]
[1748835674697,0.1065,104990.0,104980.0,1.44455309]
[1748835676902,0.1065,104990.0,104980.0,1.45291949]
[1748835677302,0.1065,104990.0,104980.0,2.95291949]
[1748835681306,0.1065,104990.0,104980.0,2.95290165]
[1748835684308,0.1065,104990.0,104980.0,2.95289846]
[1748835685300,0.29692,104990.0,104980.0,2.27468342]
[1748835685500,0.29692,104990.0,104980.0,2.83657094]
[1748835685695,0.29692,104990.0,104980.0,2.39089094]
[1748835685901,0.29692,104990.0,104980.0,0.81879094]
[1748835686209,0.29692,104990.0,104980.0,1.26447094]
[1748835686409,0.29692,104990.0,104980.0,2.88067846]
[1748835686606,0.47091825,105000.0,104990.0,0.19042]
[1748835686810,0.47091825,105000.0,104990.0,0.95104865]
[1748835686811,0.52335831,105000.0,104990.0,0.95104865]
[1748835687305,0.4345,105000.0,104990.0,0.83484113]